[Event "Late-Titled-Tuesday-Blitz-January-30-2024"]
[Site "Chess.com"]
[Date "2024.01.30"]
[Round "2"]
[White "HajiyevKanan"]
[Black "Eduard_Limonov"]
[Result "0-1"]
[WhiteElo "2588"]
[BlackElo "2878"]
[TimeControl "180+1"]
[EndTime "14:20:04 PST"]
[Termination "Eduard_Limonov won by resignation"]

1. d4 {[%clk 0:03:00.9]} 1... d5 {[%clk 0:02:58.2]} 2. Nf3 {[%clk 0:03:01.3]}
2... Nf6 {[%clk 0:02:57.7]} 3. c4 {[%clk 0:03:01.9]} 3... e6 {[%clk 0:02:57.8]}
4. cxd5 {[%clk 0:03:02.8]} 4... exd5 {[%clk 0:02:57.9]} 5. Nc3 {[%clk
0:03:03.7]} 5... c6 {[%clk 0:02:57.9]} 6. Qc2 {[%clk 0:03:04.1]} 6... h6 {[%clk
0:02:51.9]} 7. Bf4 {[%clk 0:03:04.1]} 7... Bd6 {[%clk 0:02:49.4]} 8. Bxd6 {[%clk
0:03:04.4]} 8... Qxd6 {[%clk 0:02:50.3]} 9. e3 {[%clk 0:03:05.3]} 9... O-O
{[%clk 0:02:49.9]} 10. Bd3 {[%clk 0:03:05.8]} 10... Be6 {[%clk 0:02:43.7]} 11.
O-O {[%clk 0:03:05.7]} 11... Nbd7 {[%clk 0:02:44]} 12. Rab1 {[%clk 0:03:06.4]}
12... a5 {[%clk 0:02:43.2]} 13. a3 {[%clk 0:03:06]} 13... Bg4 {[%clk 0:02:21.6]}
14. Be2 {[%clk 0:03:04.9]} 14... Rfe8 {[%clk 0:02:15.4]} 15. h3 {[%clk
0:03:04.1]} 15... Bh5 {[%clk 0:02:14.7]} 16. Nh4 {[%clk 0:03:00.8]} 16... Bxe2
{[%clk 0:02:13.8]} 17. Qxe2 {[%clk 0:03:01.6]} 17... g6 {[%clk 0:02:11.4]} 18.
Qc2 {[%clk 0:02:57]} 18... Kg7 {[%clk 0:02:08.2]} 19. Rfe1 {[%clk 0:02:52.5]}
19... Re6 {[%clk 0:01:55.3]} 20. Rbc1 {[%clk 0:02:38.3]} 20... Rae8 {[%clk
0:01:34.4]} 21. Qa4 {[%clk 0:02:37.4]} 21... b6 {[%clk 0:01:25.1]} 22. b4 {[%clk
0:02:34.7]} 22... axb4 {[%clk 0:01:24.7]} 23. Qxb4 {[%clk 0:02:35.3]} 23... c5
{[%clk 0:01:15.9]} 24. dxc5 {[%clk 0:02:33.2]} 24... bxc5 {[%clk 0:01:16]} 25.
Qb7 {[%clk 0:02:21.4]} 25... d4 {[%clk 0:00:41.9]} 26. Red1 {[%clk 0:02:20.4]}
26... Qa6 {[%clk 0:00:14.5]} 27. Qxa6 {[%clk 0:02:16.6]} 27... Rxa6 {[%clk
0:00:15.4]} 28. exd4 {[%clk 0:02:17]} 28... cxd4 {[%clk 0:00:16.3]} 29. Nb5
{[%clk 0:02:13.5]} 29... Rb8 {[%clk 0:00:16.2]} 30. Nxd4 {[%clk 0:02:10.2]}
30... Rxa3 {[%clk 0:00:16]} 31. Rc2 {[%clk 0:02:04.6]} 31... Ra4 {[%clk
0:00:12.1]} 32. Nhf3 {[%clk 0:02:04.5]} 32... h5 {[%clk 0:00:08.8]} 33. g3
{[%clk 0:02:02.5]} 33... Re8 {[%clk 0:00:07.3]} 34. Kg2 {[%clk 0:02:02.8]} 34...
Ne5 {[%clk 0:00:07.4]} 35. Nxe5 {[%clk 0:02:02.6]} 35... Rxe5 {[%clk 0:00:08.3]}
36. Nf3 {[%clk 0:02:00.8]} 36... Rf5 {[%clk 0:00:08.3]} 37. Rd3 {[%clk
0:01:59.2]} 37... Ne4 {[%clk 0:00:05.5]} 38. Rd4 {[%clk 0:01:54.2]} 38... Rxd4
{[%clk 0:00:04]} 39. Nxd4 {[%clk 0:01:55.1]} 39... Rd5 {[%clk 0:00:04.6]} 40.
Nf3 {[%clk 0:01:54.8]} 40... Nd6 {[%clk 0:00:04.5]} 41. Rc7 {[%clk 0:01:54.3]}
41... Rd3 {[%clk 0:00:02]} 42. Rd7 {[%clk 0:01:52.1]} 42... Rd5 {[%clk
0:00:02.6]} 43. h4 {[%clk 0:01:49.2]} 43... Kf8 {[%clk 0:00:02.7]} 44. Ng5
{[%clk 0:01:48.9]} 44... Ke8 {[%clk 0:00:03.3]} 45. Ra7 {[%clk 0:01:47.3]} 45...
Rd2 {[%clk 0:00:03.6]} 46. Ra8+ {[%clk 0:01:46.6]} 46... Ke7 {[%clk 0:00:03.9]}
47. Ra7+ {[%clk 0:01:47.4]} 47... Kf6 {[%clk 0:00:03.6]} 48. Ra6 {[%clk
0:01:48.2]} 48... Kg7 {[%clk 0:00:03.4]} 49. Ra7 {[%clk 0:01:46.5]} 49... Kf8
{[%clk 0:00:03.6]} 50. Kf1 {[%clk 0:01:36]} 50... Rd5 {[%clk 0:00:03]} 51. Rd7
{[%clk 0:01:33.4]} 51... Ke8 {[%clk 0:00:03]} 52. Rc7 {[%clk 0:01:31.8]} 52...
Rf5 {[%clk 0:00:03.1]} 53. Kg2 {[%clk 0:01:27.6]} 53... Kd8 {[%clk 0:00:03.4]}
54. Ra7 {[%clk 0:01:23.3]} 54... Ke8 {[%clk 0:00:03.8]} 55. Ra8+ {[%clk
0:01:23.2]} 55... Ke7 {[%clk 0:00:04.2]} 56. Ra7+ {[%clk 0:01:24.1]} 56... Ke8
{[%clk 0:00:04.6]} 57. Ra6 {[%clk 0:01:22.4]} 57... Ke7 {[%clk 0:00:04.5]} 58.
Ra2 {[%clk 0:01:22.4]} 58... Rd5 {[%clk 0:00:04.5]} 59. Re2+ {[%clk 0:01:22.8]}
59... Kf8 {[%clk 0:00:04]} 60. Nh7+ {[%clk 0:01:22.6]} 60... Kg7 {[%clk
0:00:04.4]} 61. Ng5 {[%clk 0:01:23.5]} 61... Rf5 {[%clk 0:00:03.5]} 62. Nf3
{[%clk 0:01:23.2]} 62... Rf6 {[%clk 0:00:03.4]} 63. Re5 {[%clk 0:01:22.4]} 63...
Nf5 {[%clk 0:00:02.6]} 64. Ng5 {[%clk 0:01:21.1]} 64... Rd6 {[%clk 0:00:02.8]}
65. Re2 {[%clk 0:01:20.6]} 65... Rd7 {[%clk 0:00:03.2]} 66. Kf1 {[%clk
0:01:19.3]} 66... f6 {[%clk 0:00:02.9]} 67. Ne6+ {[%clk 0:01:19.1]} 67... Kf7
{[%clk 0:00:03.5]} 68. Nf4 {[%clk 0:01:20]} 68... Rd4 {[%clk 0:00:03.7]} 69. Kg2
{[%clk 0:01:19.3]} 69... Nxh4+ {[%clk 0:00:03.5]} 70. gxh4 {[%clk 0:01:13.3]}
70... Rxf4 {[%clk 0:00:03.5]} 71. Kg3 {[%clk 0:01:14.2]} 71... Rg4+ {[%clk
0:00:03.9]} 72. Kh3 {[%clk 0:01:15]} 72... Rb4 {[%clk 0:00:04.1]} 73. Kg3 {[%clk
0:01:14.7]} 73... Rb3+ {[%clk 0:00:04.3]} 74. f3 {[%clk 0:01:14.8]} 74... Rb1
{[%clk 0:00:04.6]} 75. Rc2 {[%clk 0:01:14.6]} 75... Rg1+ {[%clk 0:00:04.7]} 76.
Kh2 {[%clk 0:01:15.3]} 76... Re1 {[%clk 0:00:03.9]} 77. Kg2 {[%clk 0:01:15.1]}
77... g5 {[%clk 0:00:03.7]} 78. hxg5 {[%clk 0:01:15.2]} 78... fxg5 {[%clk
0:00:04.6]} 79. Kf2 {[%clk 0:01:15.2]} 79... Re5 {[%clk 0:00:03.9]} 80. Kg3
{[%clk 0:01:15.5]} 80... Ra5 {[%clk 0:00:03.8]} 81. Rc7+ {[%clk 0:01:15.7]}
81... Kf6 {[%clk 0:00:04.3]} 82. Rc6+ {[%clk 0:01:16.4]} 82... Kf5 {[%clk
0:00:04.8]} 83. Rc8 {[%clk 0:01:15.9]} 83... h4+ {[%clk 0:00:05.2]} 84. Kh3
{[%clk 0:01:15.3]} 84... Kf4 {[%clk 0:00:05.7]} 85. Rc3 {[%clk 0:01:03.4]} 85...
Re5 {[%clk 0:00:06.1]} 86. Kg2 {[%clk 0:01:02.2]} 86... Re2+ {[%clk 0:00:06.1]}
87. Kf1 {[%clk 0:00:37.8]} 87... Re3 {[%clk 0:00:06.3]} 88. Rc5 {[%clk
0:00:37.9]} 88... Rxf3+ {[%clk 0:00:05.9]} 89. Kg2 {[%clk 0:00:38.6]} 89... Rg3+
{[%clk 0:00:06.4]} 90. Kh2 {[%clk 0:00:39.3]} 90... Kg4 {[%clk 0:00:06.7]} 91.
Rc4+ {[%clk 0:00:39.8]} 91... Kh5 {[%clk 0:00:07]} 92. Rc5 {[%clk 0:00:40.7]}
92... Ra3 {[%clk 0:00:07.4]} 93. Rd5 {[%clk 0:00:40.1]} 93... Ra2+ {[%clk
0:00:07]} 94. Kh3 {[%clk 0:00:40.5]} 94... Ra3+ {[%clk 0:00:07.5]} 95. Kh2
{[%clk 0:00:40.9]} 95... Re3 {[%clk 0:00:06.9]} 96. Rf5 {[%clk 0:00:40.8]} 96...
Kg4 {[%clk 0:00:07.2]} 97. Rf2 {[%clk 0:00:41.2]} 97... h3 {[%clk 0:00:06.7]}
98. Rc2 {[%clk 0:00:41.9]} 98... Kh4 {[%clk 0:00:07]} 99. Rc8 {[%clk 0:00:40.3]}
99... Re2+ {[%clk 0:00:07.3]} 100. Kh1 {[%clk 0:00:40.4]} 100... g4 {[%clk
0:00:07.8]} 101. Rc3 {[%clk 0:00:38.8]} 101... Re1+ {[%clk 0:00:07.4]} 102. Kh2
{[%clk 0:00:38.1]} 102... g3+ {[%clk 0:00:08]} 103. Rxg3 {[%clk 0:00:34.6]}
103... Re2+ {[%clk 0:00:08.9]} 104. Rg2 {[%clk 0:00:32.9]} 104... Rxg2+ {[%clk
0:00:09]} 105. Kh1 {[%clk 0:00:33.7]} 105... Ra2 {[%clk 0:00:09.5]} 0-1

[Event "Late-Titled-Tuesday-Blitz-January-30-2024"]
[Site "Chess.com"]
[Date "2024.01.30"]
[Round "2"]
[White "annasargsyan_m"]
[Black "Sokoloco"]
[Result "1/2-1/2"]
[WhiteElo "2543"]
[BlackElo "2751"]
[TimeControl "180+1"]
[EndTime "14:20:05 PST"]
[Termination "Game drawn - insufficient material"]

1. d4 {[%clk 0:03:00.9]} 1... d6 {[%clk 0:03:00.1]} 2. c4 {[%clk 0:03:01.3]}
2... e5 {[%clk 0:03:00]} 3. e3 {[%clk 0:02:59.8]} 3... exd4 {[%clk 0:02:53.3]}
4. exd4 {[%clk 0:03:00.7]} 4... g6 {[%clk 0:02:50.1]} 5. Nc3 {[%clk 0:03:00.9]}
5... Bg7 {[%clk 0:02:50.5]} 6. Be3 {[%clk 0:03:01.1]} 6... Nf6 {[%clk
0:02:50.5]} 7. h3 {[%clk 0:02:59]} 7... O-O {[%clk 0:02:49.8]} 8. Nf3 {[%clk
0:02:59.5]} 8... c6 {[%clk 0:02:49.2]} 9. Be2 {[%clk 0:03:00]} 9... Na6 {[%clk
0:02:48.7]} 10. O-O {[%clk 0:02:56.6]} 10... Nc7 {[%clk 0:02:49.2]} 11. Qd2
{[%clk 0:02:52.1]} 11... Re8 {[%clk 0:02:46.1]} 12. Rfe1 {[%clk 0:02:51]} 12...
Bf5 {[%clk 0:02:41.7]} 13. Rad1 {[%clk 0:02:47.7]} 13... Ne4 {[%clk 0:02:33.1]}
14. Nxe4 {[%clk 0:02:47.2]} 14... Bxe4 {[%clk 0:02:34]} 15. Bh6 {[%clk
0:02:33.3]} 15... Bxh6 {[%clk 0:02:19.4]} 16. Qxh6 {[%clk 0:02:29.8]} 16... Bxf3
{[%clk 0:02:19.9]} 17. Bxf3 {[%clk 0:02:28.3]} 17... Qf6 {[%clk 0:02:20.2]} 18.
Qd2 {[%clk 0:02:03.7]} 18... Rxe1+ {[%clk 0:02:03.1]} 19. Rxe1 {[%clk
0:02:04.6]} 19... Ne6 {[%clk 0:02:03.8]} 20. d5 {[%clk 0:01:58.4]} 20... Nd4
{[%clk 0:02:04]} 21. dxc6 {[%clk 0:01:49.6]} 21... Nxf3+ {[%clk 0:02:01.2]} 22.
gxf3 {[%clk 0:01:50.5]} 22... bxc6 {[%clk 0:01:59]} 23. Kg2 {[%clk 0:01:49.6]}
23... Rd8 {[%clk 0:01:54.5]} 24. b3 {[%clk 0:01:44.5]} 24... d5 {[%clk
0:01:54.1]} 25. cxd5 {[%clk 0:01:37.1]} 25... cxd5 {[%clk 0:01:55]} 26. Kg3
{[%clk 0:01:09.8]} 26... d4 {[%clk 0:01:25.8]} 27. Qf4 {[%clk 0:01:09.3]} 27...
Qc6 {[%clk 0:01:07.1]} 28. Qe4 {[%clk 0:00:44.7]} 28... Qd6+ {[%clk 0:00:58.7]}
29. Qf4 {[%clk 0:00:43.3]} 29... Qd7 {[%clk 0:00:40]} 30. Qg4 {[%clk 0:00:36.8]}
30... Qd5 {[%clk 0:00:18.6]} 31. Qe4 {[%clk 0:00:34.5]} 31... Qa5 {[%clk
0:00:19.2]} 32. Rd1 {[%clk 0:00:32.7]} 32... Qg5+ {[%clk 0:00:15.4]} 33. Qg4
{[%clk 0:00:32.5]} 33... Qc5 {[%clk 0:00:15.6]} 34. Rd3 {[%clk 0:00:29]} 34...
h5 {[%clk 0:00:15.6]} 35. Qf4 {[%clk 0:00:28.2]} 35... Rd5 {[%clk 0:00:14.1]}
36. Kh2 {[%clk 0:00:23.9]} 36... Rd7 {[%clk 0:00:12.2]} 37. Qe4 {[%clk
0:00:20.4]} 37... Qd6+ {[%clk 0:00:12.2]} 38. Kg2 {[%clk 0:00:20.4]} 38... Qf6
{[%clk 0:00:11.2]} 39. b4 {[%clk 0:00:19.4]} 39... Kg7 {[%clk 0:00:07.5]} 40. b5
{[%clk 0:00:18.7]} 40... Qd6 {[%clk 0:00:04.7]} 41. a4 {[%clk 0:00:17.6]} 41...
Qc5 {[%clk 0:00:04.7]} 42. h4 {[%clk 0:00:15.4]} 42... Rd5 {[%clk 0:00:05.2]}
43. Qf4 {[%clk 0:00:13.4]} 43... Rd6 {[%clk 0:00:04.8]} 44. Qe4 {[%clk
0:00:13.8]} 44... Rd7 {[%clk 0:00:04.5]} 45. Qf4 {[%clk 0:00:13.8]} 45... Rd5
{[%clk 0:00:05.1]} 46. Qe4 {[%clk 0:00:13.8]} 46... Qd6 {[%clk 0:00:05.5]} 47.
a5 {[%clk 0:00:11.5]} 47... Qd8 {[%clk 0:00:04.9]} 48. b6 {[%clk 0:00:10.3]}
48... axb6 {[%clk 0:00:05.8]} 49. axb6 {[%clk 0:00:10.8]} 49... Rb5 {[%clk
0:00:05.6]} 50. Qxd4+ {[%clk 0:00:08.6]} 50... Qxd4 {[%clk 0:00:06.3]} 51. Rxd4
{[%clk 0:00:09.5]} 51... Rxb6 {[%clk 0:00:07.2]} 52. Kg3 {[%clk 0:00:09.9]}
52... Rf6 {[%clk 0:00:08.1]} 53. Kg2 {[%clk 0:00:10]} 53... Rf5 {[%clk
0:00:08.7]} 54. Re4 {[%clk 0:00:10.3]} 54... Kf6 {[%clk 0:00:09.3]} 55. Rd4
{[%clk 0:00:10.6]} 55... Re5 {[%clk 0:00:09.8]} 56. Rc4 {[%clk 0:00:10.6]} 56...
Kf5 {[%clk 0:00:10.4]} 57. Ra4 {[%clk 0:00:10.9]} 57... Rd5 {[%clk 0:00:10.9]}
58. Kg3 {[%clk 0:00:10.9]} 58... Kf6 {[%clk 0:00:11.3]} 59. Rf4+ {[%clk
0:00:11.1]} 59... Rf5 {[%clk 0:00:11.8]} 60. Ra4 {[%clk 0:00:11.8]} 60... Kg7
{[%clk 0:00:11.8]} 61. Ra6 {[%clk 0:00:11.9]} 61... Rf6 {[%clk 0:00:12.3]} 62.
Ra4 {[%clk 0:00:11.6]} 62... Re6 {[%clk 0:00:13]} 63. Rb4 {[%clk 0:00:11.7]}
63... Rd6 {[%clk 0:00:13.7]} 64. Ra4 {[%clk 0:00:12]} 64... Rd2 {[%clk
0:00:14.3]} 65. Rb4 {[%clk 0:00:11.8]} 65... Rd1 {[%clk 0:00:14.9]} 66. Kg2
{[%clk 0:00:12.2]} 66... Rd3 {[%clk 0:00:14.9]} 67. Ra4 {[%clk 0:00:12.6]} 67...
Kf6 {[%clk 0:00:15]} 68. Rf4+ {[%clk 0:00:13.2]} 68... Ke6 {[%clk 0:00:15.3]}
69. Re4+ {[%clk 0:00:13.8]} 69... Kf5 {[%clk 0:00:15.7]} 70. Ra4 {[%clk
0:00:14.2]} 70... Ke5 {[%clk 0:00:14.9]} 71. Re4+ {[%clk 0:00:13.8]} 71... Kf6
{[%clk 0:00:15]} 72. Rf4+ {[%clk 0:00:13.7]} 72... Ke6 {[%clk 0:00:15.6]} 73.
Re4+ {[%clk 0:00:13.9]} 73... Kf5 {[%clk 0:00:16.3]} 74. Ra4 {[%clk 0:00:14.1]}
74... Rd5 {[%clk 0:00:16.9]} 75. Rb4 {[%clk 0:00:13.7]} 75... Ke5 {[%clk
0:00:16.4]} 76. Re4+ {[%clk 0:00:13.7]} 76... Kf6 {[%clk 0:00:17.1]} 77. Rf4+
{[%clk 0:00:13.9]} 77... Rf5 {[%clk 0:00:17.8]} 78. Ra4 {[%clk 0:00:14.3]} 78...
g5 {[%clk 0:00:13.5]} 79. Ra6+ {[%clk 0:00:11]} 79... Kg7 {[%clk 0:00:12.5]} 80.
hxg5 {[%clk 0:00:11.2]} 80... Rxg5+ {[%clk 0:00:13.4]} 81. Kh3 {[%clk
0:00:11.5]} 81... f6 {[%clk 0:00:13.6]} 82. Ra7+ {[%clk 0:00:11]} 82... Kg6
{[%clk 0:00:14.1]} 83. Ra8 {[%clk 0:00:10.9]} 83... Kf5 {[%clk 0:00:13.1]} 84.
Ra4 {[%clk 0:00:07.9]} 84... Rg1 {[%clk 0:00:12.8]} 85. Kh2 {[%clk 0:00:04.6]}
85... Rg6 {[%clk 0:00:08.7]} 86. Ra5+ {[%clk 0:00:04.4]} 86... Kf4 {[%clk
0:00:09.1]} 87. Rxh5 {[%clk 0:00:04.6]} 87... Kxf3 {[%clk 0:00:09.7]} 88. Rf5+
{[%clk 0:00:04.7]} 88... Ke2 {[%clk 0:00:09.4]} 89. Kh3 {[%clk 0:00:03.9]} 89...
Kf1 {[%clk 0:00:09.2]} 90. Kh4 {[%clk 0:00:03.6]} 90... Rh6+ {[%clk 0:00:09.6]}
91. Kg4 {[%clk 0:00:03.9]} 91... Kg2 {[%clk 0:00:10.3]} 92. Rh5 {[%clk
0:00:02.2]} 92... f5+ {[%clk 0:00:03.7]} 93. Rxf5 {[%clk 0:00:01.7]} 93... Rg6+
{[%clk 0:00:04.4]} 94. Kf4 {[%clk 0:00:02]} 94... Rg8 {[%clk 0:00:03.8]} 95.
Rg5+ {[%clk 0:00:02.1]} 95... Rxg5 {[%clk 0:00:04]} 96. Kxg5 {[%clk 0:00:03]}
96... Kxf2 {[%clk 0:00:04.6]} 1/2-1/2

[Event "Late-Titled-Tuesday-Blitz-January-30-2024"]
[Site "Chess.com"]
[Date "2024.01.30"]
[Round "2"]
[White "AradNazari"]
[Black "mishanick"]
[Result "1-0"]
[WhiteElo "2690"]
[BlackElo "3127"]
[TimeControl "180+1"]
[EndTime "14:20:14 PST"]
[Termination "AradNazari won on time"]

1. e4 {[%clk 0:03:00.9]} 1... c5 {[%clk 0:02:59.8]} 2. Nf3 {[%clk 0:03:01.3]}
2... e6 {[%clk 0:03:00.5]} 3. d4 {[%clk 0:03:01.2]} 3... cxd4 {[%clk 0:03:01.4]}
4. Nxd4 {[%clk 0:03:02.1]} 4... Nc6 {[%clk 0:03:01.8]} 5. Nc3 {[%clk 0:03:02.1]}
5... a6 {[%clk 0:03:01.8]} 6. Be3 {[%clk 0:03:01.4]} 6... Nf6 {[%clk 0:02:56.4]}
7. Nxc6 {[%clk 0:02:43.5]} 7... bxc6 {[%clk 0:02:55]} 8. Bd3 {[%clk 0:02:37.8]}
8... d5 {[%clk 0:02:55.2]} 9. Bd4 {[%clk 0:02:27.9]} 9... Be7 {[%clk 0:02:53]}
10. O-O {[%clk 0:02:26.1]} 10... Rb8 {[%clk 0:02:50.8]} 11. Be5 {[%clk
0:02:07.5]} 11... Bd6 {[%clk 0:02:42.8]} 12. Bxd6 {[%clk 0:01:55.1]} 12... Qxd6
{[%clk 0:02:43.7]} 13. Qe2 {[%clk 0:01:55.3]} 13... Qc7 {[%clk 0:02:24.8]} 14.
exd5 {[%clk 0:01:38]} 14... cxd5 {[%clk 0:02:24.5]} 15. Bxa6 {[%clk 0:01:38.6]}
15... Bxa6 {[%clk 0:02:22.4]} 16. Qxa6 {[%clk 0:01:39.5]} 16... Rxb2 {[%clk
0:01:52.3]} 17. Nb5 {[%clk 0:01:38.1]} 17... Qb8 {[%clk 0:01:52.4]} 18. Qc6+
{[%clk 0:01:29.2]} 18... Nd7 {[%clk 0:01:52.3]} 19. a4 {[%clk 0:01:24.1]} 19...
Ke7 {[%clk 0:01:39.9]} 20. Qc3 {[%clk 0:01:08]} 20... Qe5 {[%clk 0:01:36.7]} 21.
Qa3+ {[%clk 0:01:07.9]} 21... Kd8 {[%clk 0:01:29.2]} 22. Rac1 {[%clk 0:00:55.5]}
22... g5 {[%clk 0:01:15.9]} 23. Rfe1 {[%clk 0:00:45.9]} 23... Qf6 {[%clk
0:01:13.4]} 24. Re3 {[%clk 0:00:24.5]} 24... g4 {[%clk 0:01:05.2]} 25. Rc3
{[%clk 0:00:23.5]} 25... d4 {[%clk 0:00:40.3]} 26. Rd3 {[%clk 0:00:23.5]} 26...
Rxb5 {[%clk 0:00:40.4]} 27. axb5 {[%clk 0:00:24.2]} 27... e5 {[%clk 0:00:41.2]}
28. Rb1 {[%clk 0:00:18.9]} 28... Qb6 {[%clk 0:00:31.4]} 29. Qa8+ {[%clk
0:00:18.2]} 29... Nb8 {[%clk 0:00:28.4]} 30. Qd5+ {[%clk 0:00:18.1]} 30... Nd7
{[%clk 0:00:28.9]} 31. Ra3 {[%clk 0:00:15]} 31... Ke7 {[%clk 0:00:19.9]} 32. Ra6
{[%clk 0:00:12.2]} 32... Qc5 {[%clk 0:00:20.2]} 33. Qxc5+ {[%clk 0:00:10.2]}
33... Nxc5 {[%clk 0:00:20.9]} 34. Ra7+ {[%clk 0:00:11]} 34... Ke6 {[%clk
0:00:17.7]} 35. b6 {[%clk 0:00:11.4]} 35... Rb8 {[%clk 0:00:18.3]} 36. Rc7
{[%clk 0:00:10.3]} 36... Na6 {[%clk 0:00:10.4]} 37. Rc6+ {[%clk 0:00:08.4]}
37... Kd5 {[%clk 0:00:10.6]} 38. Rf6 {[%clk 0:00:08.8]} 38... Rb7 {[%clk
0:00:10.9]} 39. Rb5+ {[%clk 0:00:06.5]} 39... Nc5 {[%clk 0:00:10.5]} 40. Rb1
{[%clk 0:00:07.1]} 40... h5 {[%clk 0:00:10.2]} 41. Rf5 {[%clk 0:00:06.7]} 41...
h4 {[%clk 0:00:09.3]} 42. Rg5 {[%clk 0:00:06.6]} 42... g3 {[%clk 0:00:06.3]} 43.
hxg3 {[%clk 0:00:06.8]} 43... Ne4 {[%clk 0:00:06.4]} 44. Rg7 {[%clk 0:00:04.2]}
44... hxg3 {[%clk 0:00:06.9]} 45. f3 {[%clk 0:00:04.6]} 45... Nc3 {[%clk
0:00:07.7]} 46. Rb3 {[%clk 0:00:04.6]} 46... Kc4 {[%clk 0:00:05.2]} 47. Kf1
{[%clk 0:00:04.1]} 47... Nd5 {[%clk 0:00:05.5]} 48. Ke2 {[%clk 0:00:02.9]} 48...
Nf4+ {[%clk 0:00:02.8]} 49. Kd2 {[%clk 0:00:03.4]} 49... Nxg2 {[%clk 0:00:03.4]}
50. Rxg3 {[%clk 0:00:03.9]} 50... Ne3 {[%clk 0:00:04]} 51. Rg7 {[%clk
0:00:03.8]} 51... Nd5 {[%clk 0:00:04.3]} 52. Rxf7 {[%clk 0:00:03.1]} 52... Rxf7
{[%clk 0:00:04.1]} 53. b7 {[%clk 0:00:03.5]} 53... Rxb7 {[%clk 0:00:03.7]} 54.
Rxb7 {[%clk 0:00:04.4]} 54... Nf4 {[%clk 0:00:03.8]} 55. Re7 {[%clk 0:00:02.8]}
55... Kd5 {[%clk 0:00:04.3]} 56. Ra7 {[%clk 0:00:03.3]} 56... Kd6 {[%clk
0:00:04.7]} 57. Ra5 {[%clk 0:00:03.6]} 57... Ke6 {[%clk 0:00:05.3]} 58. Ke1
{[%clk 0:00:03.7]} 58... Kf5 {[%clk 0:00:05.6]} 59. Kf2 {[%clk 0:00:04.2]} 59...
Ne6 {[%clk 0:00:06.1]} 60. Ke2 {[%clk 0:00:03.6]} 60... Nf4+ {[%clk 0:00:06.4]}
61. Kf2 {[%clk 0:00:03.2]} 61... Ng6 {[%clk 0:00:05.8]} 62. Ra8 {[%clk
0:00:03.6]} 62... Ne7 {[%clk 0:00:05.8]} 63. Rf8+ {[%clk 0:00:03.7]} 63... Ke6
{[%clk 0:00:06.2]} 64. Ke2 {[%clk 0:00:03]} 64... Ng6 {[%clk 0:00:05.7]} 65.
Re8+ {[%clk 0:00:03.5]} 65... Kd5 {[%clk 0:00:05.8]} 66. Rc8 {[%clk 0:00:03.8]}
66... Nf4+ {[%clk 0:00:05.7]} 67. Kd2 {[%clk 0:00:04.4]} 67... Ne6 {[%clk
0:00:05.9]} 68. c4+ {[%clk 0:00:04.3]} 68... dxc3+ {[%clk 0:00:04.7]} 69. Rxc3
{[%clk 0:00:04.6]} 69... Nd4 {[%clk 0:00:03.7]} 70. Ke3 {[%clk 0:00:03.9]} 70...
Nf5+ {[%clk 0:00:03.8]} 71. Kd3 {[%clk 0:00:04.4]} 71... Ke6 {[%clk 0:00:03.9]}
72. Rc6+ {[%clk 0:00:04]} 72... Kd5 {[%clk 0:00:04.5]} 73. Ra6 {[%clk
0:00:04.5]} 73... Nh4 {[%clk 0:00:04.2]} 74. Ra5+ {[%clk 0:00:04.9]} 74... Ke6
{[%clk 0:00:01.7]} 75. Ke4 {[%clk 0:00:05.6]} 75... Ng6 {[%clk 0:00:02.3]} 76.
Ra6+ {[%clk 0:00:05.8]} 76... Kf7 {[%clk 0:00:03]} 77. Rb6 {[%clk 0:00:04.4]}
77... Kg7 {[%clk 0:00:03.1]} 78. Kf5 {[%clk 0:00:04.3]} 78... Nh4+ {[%clk
0:00:03.6]} 79. Kg4 {[%clk 0:00:04.9]} 79... Ng6 {[%clk 0:00:04.1]} 80. Kg5
{[%clk 0:00:04.5]} 80... Ne7 {[%clk 0:00:04.2]} 81. Re6 {[%clk 0:00:04.1]} 81...
Kf7 {[%clk 0:00:03.4]} 82. Rxe5 {[%clk 0:00:04.4]} 82... Nc6 {[%clk 0:00:04.3]}
83. Rc5 {[%clk 0:00:04.4]} 83... Nd4 {[%clk 0:00:04.8]} 84. Kg4 {[%clk
0:00:03.5]} 84... Kf6 {[%clk 0:00:04.4]} 85. f4 {[%clk 0:00:04.1]} 85... Ke6
{[%clk 0:00:04]} 86. Ra5 {[%clk 0:00:04.6]} 86... Nb3 {[%clk 0:00:04.1]} 87.
Ra6+ {[%clk 0:00:04.9]} 87... Ke7 {[%clk 0:00:04.5]} 88. f5 {[%clk 0:00:05.5]}
88... Nc5 {[%clk 0:00:05.1]} 89. Rb6 {[%clk 0:00:05.3]} 89... Nd3 {[%clk
0:00:05.3]} 90. Kh5 {[%clk 0:00:05]} 90... Kf7 {[%clk 0:00:05]} 91. Kg5 {[%clk
0:00:04.9]} 91... Nc5 {[%clk 0:00:05.8]} 92. Rc6 {[%clk 0:00:05]} 92... Ne4+
{[%clk 0:00:06.2]} 93. Kf4 {[%clk 0:00:05.7]} 93... Nf6 {[%clk 0:00:06.9]} 94.
Ra6 {[%clk 0:00:06]} 94... Nd5+ {[%clk 0:00:04.3]} 95. Kg5 {[%clk 0:00:06.2]}
95... Kf8 {[%clk 0:00:02.3]} 96. f6 {[%clk 0:00:05.2]} 96... Kf7 {[%clk
0:00:02]} 97. Ra7+ {[%clk 0:00:05.8]} 97... Ke6 {[%clk 0:00:02.5]} 98. f7 {[%clk
0:00:05.3]} 1-0

[Event "Late-Titled-Tuesday-Blitz-January-30-2024"]
[Site "Chess.com"]
[Date "2024.01.30"]
[Round "3"]
[White "alexgo05"]
[Black "ahkashefi2800"]
[Result "0-1"]
[WhiteElo "2358"]
[BlackElo "2578"]
[TimeControl "180+1"]
[EndTime "14:23:14 PST"]
[Termination "ahkashefi2800 won by resignation"]

1. c4 {[%clk 0:03:00.6]} 1... c6 {[%clk 0:02:59.9]} 2. b3 {[%clk 0:02:58.4]}
2... d5 {[%clk 0:02:59.8]} 3. Bb2 {[%clk 0:02:58.7]} 3... d4 {[%clk 0:02:58.1]}
4. Nf3 {[%clk 0:02:56.7]} 4... c5 {[%clk 0:02:57.5]} 5. e3 {[%clk 0:02:52.1]}
5... Nc6 {[%clk 0:02:56.9]} 6. exd4 {[%clk 0:02:51]} 6... cxd4 {[%clk
0:02:56.9]} 7. d3 {[%clk 0:02:49.3]} 7... g6 {[%clk 0:02:57]} 8. g3 {[%clk
0:02:48.2]} 8... Bg7 {[%clk 0:02:57.2]} 9. Bg2 {[%clk 0:02:48.6]} 9... Nf6
{[%clk 0:02:57.4]} 10. Na3 {[%clk 0:02:46.5]} 10... O-O {[%clk 0:02:56.4]} 11.
O-O {[%clk 0:02:46]} 11... e5 {[%clk 0:02:54.5]} 12. Re1 {[%clk 0:02:40.2]}
12... Re8 {[%clk 0:02:54.2]} 13. Nc2 {[%clk 0:02:40.3]} 13... Bf5 {[%clk
0:02:43.8]} 14. b4 {[%clk 0:02:37.4]} 14... Nd7 {[%clk 0:02:34.6]} 15. Ng5
{[%clk 0:02:20.4]} 15... Qxg5 {[%clk 0:02:32.7]} 0-1

[Event "Late-Titled-Tuesday-Blitz-January-30-2024"]
[Site "Chess.com"]
[Date "2024.01.30"]
[Round "3"]
[White "Sacbutt"]
[Black "Fh2411"]
[Result "0-1"]
[WhiteElo "2364"]
[BlackElo "2575"]
[TimeControl "180+1"]
[EndTime "14:23:55 PST"]
[Termination "Fh2411 won by resignation"]

1. e4 {[%clk 0:03:00.9]} 1... c6 {[%clk 0:02:56.8]} 2. d4 {[%clk 0:02:59.9]}
2... d5 {[%clk 0:02:57.5]} 3. Nc3 {[%clk 0:03:00.6]} 3... dxe4 {[%clk
0:02:57.6]} 4. Nxe4 {[%clk 0:03:01.5]} 4... Nf6 {[%clk 0:02:58]} 5. Nxf6+ {[%clk
0:03:01.3]} 5... exf6 {[%clk 0:02:58.9]} 6. Nf3 {[%clk 0:03:01.7]} 6... Bd6
{[%clk 0:02:58.4]} 7. Be2 {[%clk 0:03:00]} 7... O-O {[%clk 0:02:58.7]} 8. O-O
{[%clk 0:03:00.6]} 8... Re8 {[%clk 0:02:58.7]} 9. Be3 {[%clk 0:02:58.1]} 9...
Nd7 {[%clk 0:02:55.5]} 10. h3 {[%clk 0:02:56.5]} 10... Nf8 {[%clk 0:02:55.3]}
11. Qd2 {[%clk 0:02:53.8]} 11... Ng6 {[%clk 0:02:44.6]} 12. Rad1 {[%clk
0:02:51.3]} 12... Be6 {[%clk 0:02:43.6]} 13. a3 {[%clk 0:02:48.8]} 13... Qd7
{[%clk 0:02:43.6]} 14. Rfe1 {[%clk 0:02:41.6]} 14... Bxh3 {[%clk 0:02:36.6]} 15.
gxh3 {[%clk 0:02:41.4]} 15... Qxh3 {[%clk 0:02:37.5]} 16. d5 {[%clk 0:02:01.2]}
16... Nh4 {[%clk 0:02:33]} 0-1